Cogmind - Beta 14 @@@ ROGUE MODE // 2025.01.11 @ 13:26:05 Player: abnormality Result: Destroyed by as-72660 with Assembled Maul Performance ------------- Evolutions (0) 0 Regions Visited (4) 800 Robots Destroyed (21) 105 Value Destroyed (269) 269 Prototype IDs (0) 0 Alien Tech Used (0) 0 Bonus (21) 21 TOTAL SCORE: 1195 Bonus ------- Follower Combat Kills 21 Cogmind --------- Core Integrity 0/250 Matter 145/300 Energy 97/100 System Corruption 1% Temperature Cool (40) Movement Core (200) Ox3 Location -9/Mines Parts ------- > --- POWER (1) -------- (None) > --- PROPULSION (2) --- (None) > --- UTILITY (2) ------ Small Storage Unit > --- WEAPON (2) ------- Beam Cannon Heavy Assault Rifle > --- INVENTORY (8) ---- Small Storage Unit Seismic Detector Beam Cannon Peak State ------------ > --- POWER ------------ Light Ion Engine > --- PROPULSION ------- Aluminum Leg Aluminum Leg > --- UTILITY ---------- Small Storage Unit Sensor Array > --- WEAPON ----------- Heavy Assault Rifle Heavy Assault Rifle > --- INVENTORY -------- Light Ion Engine Small Storage Unit Seismic Detector Beam Cannon Light Cannon [Rating: 9] Favorites ----------- Power Light Ion Engine Engine Light Ion Engine Propulsion Aluminum Leg Leg Aluminum Leg Utility Small Storage Unit Device Sensor Array Storage Small Storage Unit Weapon Heavy Assault Rifle Energy Gun Medium Laser Energy Cannon Beam Cannon Ballistic Gun Heavy Assault Rifle Ballistic Cannon Light Cannon Launcher Rocket Launcher Build | -11 -10 -10 -10 -9 ------- Run | Yrd Mat Min Exi Min Slots Evolved . | . . . . . Power . | . . . . . Propulsion . | . . . . . Utility . | . . . . . Weapon . | . . . . . Parts Attached 25 | 6 16 . . 3 Power 3 | 1 2 . . . Engine 3 | 1 2 . . . Core . | . . . . . Reactor . | . . . . . Propulsion 4 | 2 2 . . . Treads . | . . . . . Leg 4 | 2 2 . . . Wheel . | . . . . . Hover . | . . . . . Flight . | . . . . . Utility 5 | 2 3 . . . Device 3 | 1 2 . . . Storage 2 | 1 1 . . . Processor . | . . . . . Hackware . | . . . . . Protection . | . . . . . Artifact . | . . . . . Weapon 13 | 1 9 . . 3 Energy Gun 1 | . 1 . . . Energy Cannon 3 | . 2 . . 1 Ballistic Gun 5 | 1 3 . . 1 Ballistic Cannon 3 | . 3 . . . Launcher 1 | . . . . 1 Special Weapon . | . . . . . Impact Weapon . | . . . . . Slashing Weapon . | . . . . . Piercing Weapon . | . . . . . Special Melee Weapon . | . . . . . Unidentified Prototypes . | . . . . . Parts Lost 6 | . . 1 . 5 Power 1 | . . . . 1 Propulsion 2 | . . 1 . 1 Utility 1 | . . . . 1 Weapon 2 | . . . . 2 Highest Loss Streak 5 | . . 1 . 5 To Critical Strikes . | . . . . . Average Slot Usage (%) 87 | . 97 85 85 60 Engine 13 | . 13 14 14 6 Leg 18 | . 27 14 14 7 Device 13 | . 13 14 14 5 Storage 14 | . 14 14 14 14 Energy Cannon 9 | . 4 14 14 8 Ballistic Gun 15 | . 16 14 14 14 Ballistic Cannon 2 | . 5 . . . Peak Build Rating 9 | 6 9 8 7 8 Average Rating 6 | 4 7 7 7 5 On Entrance 5 | . 6 8 7 7 Naked Turns . | . . . . . Heaviest Build 16 | 10 16 15 15 16 Greatest Support 20 | 20 20 20 10 10 Greatest Overweight (x) 3 | . 2 1 1 3 Average Overweight (x) . | . . . 1 1 Largest Inventory Capacity 8 | 8 8 8 8 8 Average Capacity 7 | 7 8 8 8 8 Most Carried 8 | 5 8 6 5 5 Average Carried 4 | 3 4 4 5 4 Final Capacity 8 | 8 8 8 8 8 Final Carried 5 | 4 4 5 5 3 Class Distribution -------------------- 100% | Mutant Dominant Class ---------------- Mutant | -10/Materials Mutant | -10/Mines Mutant | -10/Exiles Mutant | -9/Mines Resources | -11 -10 -10 -10 -9 ----------- Run | Yrd Mat Min Exi Min Matter Collected 563 | 304 227 32 . . Remotely . | . . . . . Salvage Created 446 | 149 187 45 . 65 Parts 39 | 11 18 8 . 2 Haulers Intercepted . | . . . . . Recyclers Shooed 1 | . 1 . . . Parts Field Recycled . | . . . . . Retrieved Matter . | . . . . . Parts Self-Destructed . | . . . . . Prevented . | . . . . . Kills | -11 -10 -10 -10 -9 ------- Run | Yrd Mat Min Exi Min Combat Hostiles Destroyed 16 | . 9 3 . 4 Guns 8 | . 4 1 . 3 Cannons 7 | . 5 2 . . AOE 1 | . . . . 1 Classes Destroyed 8 | 2 4 . . 2 Worker 1 | . 1 . . . Builder 1 | . 1 . . . Tunneler 3 | 3 . . . . Recycler 1 | 1 . . . . Watcher 1 | . 1 . . . Swarmer 12 | . 9 3 . . Sentry 2 | . . . . 2 Assembled 2 | . . . . 2 Best Kill Streak 6 | 2 6 3 . 3 Combat Bots Only 3 | . 3 3 . 3 Max Kills in Single Turn 2 | 1 2 1 . 1 Gunslinging . | . . . . . Exploded 1 | . . . . 1 Melee . | . . . . . Uniques/NPCs Destroyed . | . . . . . Combat | -11 -10 -10 -10 -9 -------- Run | Yrd Mat Min Exi Min Hostile Shots Fired 103 | . 58 9 . 36 Missed 30 | . 17 . . 13 Damage Taken 905 | . 319 72 . 514 Core 264 | . 93 24 . 147 Absorbed by Shields . | . . . . . Core Remaining (%) 100 | 100 . . . . Volleys Fired 99 | 47 24 4 . 24 Largest 2 | 1 2 2 . 2 Hottest 95 | 20 95 83 . 83 Shots Fired 145 | 47 48 8 . 42 Gun 99 | 47 24 4 . 24 Cannon 40 | . 24 4 . 12 Launcher 6 | . . . . 6 Special . | . . . . . Kinetic 103 | 47 28 4 . 24 Thermal 36 | . 20 4 . 12 Explosive 6 | . . . . 6 Electromagnetic . | . . . . . Robot Hit Streak 7 | 3 3 3 . 7 Robot Miss Streak 4 | 4 3 3 . 3 Penetration Max . | . . . . . Secondary Targets . | . . . . . Shots Hit Robots 68 | 22 20 4 . 22 Core Hits 38 | 10 12 3 . 13 Critical Kills . | . . . . . Critical Parts Destroyed . | . . . . . Critical Strikes 1 | . 1 . . . Burn 1 | . 1 . . . Melee Attacks . | . . . . . Impact . | . . . . . Slashing . | . . . . . Piercing . | . . . . . Sneak Attacks . | . . . . . Combat Hostiles . | . . . . . Follow-up Attacks . | . . . . . Damage Inflicted 1002 | 178 343 66 . 415 Guns 521 | 178 134 31 . 178 Cannons 333 | . 209 35 . 89 Explosions 148 | . . . . 148 Melee . | . . . . . Ramming . | . . . . . Kinetic 568 | 178 181 31 . 178 Thermal 286 | . 162 35 . 89 Explosive 148 | . . . . 148 Electromagnetic . | . . . . . Impact . | . . . . . Slashing . | . . . . . Piercing . | . . . . . Highest Corruption 1 | . 1 1 1 1 Average Corruption 1 | . 1 1 1 1 Corruption Purged . | . . . . . Corruption Blocked . | . . . . . Effects 14 | . 1 7 4 2 Message Errors 3 | . . 3 . . Matter Fused 3 | . . 1 2 . Heat Flow Errors 2 | . . 2 . . Energy Discharges 1 | . . 1 . . Parts Rejected 1 | . 1 . . . Parts Fused 1 | . . . 1 . Data Loss (minor) 1 | . . . 1 . Data Loss (major) 2 | . . . . 2 Overload Shots . | . . . . . Overflow Damage 20 | . 10 . . 10 Projectiles 10 | . 10 . . . Explosions 10 | . . . . 10 Melee . | . . . . . Knockbacks 1 | . 1 . . . Impact . | . . . . . Kinetic 1 | . 1 . . . Secondary . | . . . . . Self-Inflicted Damage 158 | . . . . 158 Shots 5 | . . . . 5 Rammed . | . . . . . Targets Rammed . | . . . . . Kicked . | . . . . . Crushed . | . . . . . Highest Temperature 267 | . 147 267 . 40 Average Temperature 48 | . 51 84 . 15 Received Heat Transfer 63 | . . . . 63 Siege Activations . | . . . . . Robots Corrupted . | . . . . . Combat Hostiles . | . . . . . Parts Fried . | . . . . . Impact Corruptions . | . . . . . Robots Melted . | . . . . . Combat Hostiles . | . . . . . Parts Melted . | . . . . . Heat Transferred 703 | . 444 74 . 185 Parts Sabotaged . | . . . . . Parts Stolen . | . . . . . Parts Stripped . | . . . . . Power Chain Reactions . | . . . . . Alert | -11 -10 -10 -10 -9 ------- Run | Yrd Mat Min Exi Min Peak Influence 321 | 20 321 216 . 54 Initial 33 | . 13 33 . . Average 95 | 9 120 118 . 22 Maximum Alert Level 1 | . 1 1 . . Low Security (%) 82 | 100 85 66 . 100 Level 1 17 | . 14 33 . . Level 2 . | . . . . . Level 3 . | . . . . . Level 4 . | . . . . . Level 5 . | . . . . . High Security . | . . . . . Max Security . | . . . . . Squads Dispatched . | . . . . . Investigation . | . . . . . Extermination . | . . . . . Reinforcement . | . . . . . Assault . | . . . . . Garrison . | . . . . . Intercept . | . . . . . Searches Triggered . | . . . . . Construction Impeded . | . . . . . Haulers Reinforced . | . . . . . Active Scanning Responses . | . . . . . Cargo Convoy Interrupts . | . . . . . Stealth | -11 -10 -10 -10 -9 --------- Run | Yrd Mat Min Exi Min Distress Signals 4 | . 2 . . 2 Communications Jammed . | . . . . . Distress Signals . | . . . . . Times Spotted 30 | . 18 7 . 5 Peak Tracking Total 6 | . 6 3 . 3 Tactical Retreats 5 | . 3 1 . 1 Traps | -11 -10 -10 -10 -9 ------- Run | Yrd Mat Min Exi Min Traps Triggered 5 | . 5 . . . Indirectly . | . . . . . Trap Hack Attempts . | . . . . . Triggered . | . . . . . Disarmed . | . . . . . Reprogrammed . | . . . . . Reused . | . . . . . Traps Extracted . | . . . . . Installed . | . . . . . Triggered 1 | . . . . 1 Machines | -11 -10 -10 -10 -9 ---------- Run | Yrd Mat Min Exi Min Machines Disabled 4 | . 1 1 . 2 Max in Single Turn 2 | . 1 1 . 2 Machines Repaired . | . . . . . Machines Dismantled . | . . . . . Machines Sabotaged . | . . . . . Overloaded Fab Kills . | . . . . . Hacking | -11 -10 -10 -10 -9 --------- Run | Yrd Mat Min Exi Min Machines Accessed 4 | . 4 . . . Terminals 4 | . 4 . . . Fabricators . | . . . . . Repair Stations . | . . . . . Recycling Units . | . . . . . Scanalyzers . | . . . . . Garrison Access . | . . . . . Total Hacks 8 | . 8 . . . Successful 3 | . 3 . . . Failed 5 | . 5 . . . Catastrophic 1 | . 1 . . . Database Lockouts . | . . . . . Manual . | . . . . . Terminals 8 | . 8 . . . Fabricators . | . . . . . Repair Stations . | . . . . . Recycling Units . | . . . . . Scanalyzers . | . . . . . Garrison Access . | . . . . . Terminal Hacks 3 | . 3 . . . Record 1 | . 1 . . . Maintenance Status 1 | . 1 . . . Zone Layout 1 | . 1 . . . Fabricator Hacks . | . . . . . Repair Station Hacks . | . . . . . Recycling Unit Hacks . | . . . . . Scanalyzer . | . . . . . Garrison Access Hacks . | . . . . . Unauthorized Hacks . | . . . . . Terminals . | . . . . . Fabricators . | . . . . . Repair Stations . | . . . . . Recycling Units . | . . . . . Scanalyzers . | . . . . . Garrison Access . | . . . . . Data Cores Recovered . | . . . . . Used . | . . . . . Hacking Detections 2 | . 2 . . . Full Trace Events 1 | . 1 . . . Feedback Events . | . . . . . Feedback Blocked . | . . . . . Robot Schematics Acquired . | . . . . . Robots Built . | . . . . . Authchips . | . . . . . Time . | . . . . . Total Robot Build Rating . | . . . . . Part Schematics Acquired . | . . . . . Parts Built . | . . . . . Authchips . | . . . . . Time . | . . . . . Total Part Build Rating . | . . . . . Parts Repaired . | . . . . . Time . | . . . . . Parts Recycled . | . . . . . Recycled Matter . | . . . . . Retrieved Matter . | . . . . . Retrieved Components . | . . . . . Parts Scanalyzed . | . . . . . Part Schematics Acquired . | . . . . . Parts Damaged . | . . . . . Bothacking | -11 -10 -10 -10 -9 ------------ Run | Yrd Mat Min Exi Min Used RIF Installer . | . . . . . Robots Hacked . | . . . . . Non-combat . | . . . . . Combat . | . . . . . Robot Hacks Applied . | . . . . . Relay Couplers Released . | . . . . . Fabnet Peak Effective % . | . . . . . Robots Rewired . | . . . . . Allies Hacked . | . . . . . Hacks Repelled . | . . . . . Allies | -11 -10 -10 -10 -9 -------- Run | Yrd Mat Min Exi Min Total Allies 2 | . . 2 . . Largest Group 2 | . . 2 1 . Highest-Rated Group 42 | . . 42 31 . Highest-Rated Ally 31 | . . 31 31 . Total Orders . | . . . . . Ally Attacks 10 | . . 10 . . Total Damage 145 | . . 145 . . Kills 3 | . . 3 . . Allies Corrupted . | . . . . . Allies Melted . | . . . . . Intel | -11 -10 -10 -10 -9 ------- Run | Yrd Mat Min Exi Min Robot Analysis Total . | . . . . . Derelict Logs Recovered 1 | . . 1 . . Drone Launches . | . . . . . Drone Recoveries . | . . . . . Exploration | -11 -10 -10 -10 -9 ------------- Run | Yrd Mat Min Exi Min Turns Passed 2344 | 251 828 596 481 188 Spaces Moved 1307 | 132 551 307 254 63 Core 41 | 11 7 . . 23 Treads . | . . . . . Legs 1266 | 121 544 307 254 40 Wheels . | . . . . . Hover . | . . . . . Flight . | . . . . . Fastest Speed 50 | 50 100 120 190 150 Average Speed 152 | 114 119 189 190 189 Slowest Speed 200 | 120 190 190 190 200 Overloaded Moves . | . . . . . Propulsion Burnouts . | . . . . . Robots Hopped . | . . . . . Cave-ins Triggered . | . . . . . Exploration Rate (%) 46 | 8 77 58 70 21 Regions Visited 4 Branch Regions 3 Pre-discovered Areas 1 | . . 1 . . Known Exits Taken . | . . . . . Unknown Exits Taken 4 | 1 1 1 1 . Scrap Searched 1 | . . 1 . . Spaces Dug . | . . . . . Terrain Destroyed 25 | . . . . 25 Melee . | . . . . . Projectile . | . . . . . AOE 25 | . . . . 25 Terrain Rammed . | . . . . . Walls Destroyed . | . . . . . Machines Disabled . | . . . . . Actions | -11 -10 -10 -10 -9 --------- Run | Yrd Mat Min Exi Min Total 1519 | 194 669 313 253 90 Wait 64 | . 64 . . . Move 1303 | 131 550 306 253 63 Hop . | . . . . . Pick Up 24 | 10 12 2 . . Fast Attach . | . . . . . Attach 17 | 6 9 . . 2 Detach . | . . . . . Swap 8 | . 7 . . 1 Drop 4 | . 3 1 . . Fire 99 | 47 24 4 . 24 Melee . | . . . . . Ram . | . . . . . Kick . | . . . . . Crush . | . . . . . Escape Stasis . | . . . . . Rewire . | . . . . . Trap . | . . . . . Miscellaneous . | . . . . . Route ------- -11/Scrapyard -10/Materials (discovered 3 exits: [*Mat x2] / [*Min]) -10/Mines -10/Exiles -9/Mines History --------- Turn | Location | Event 4 | -11/Scrapyard | Discovered new exit (range 15) 252 | -11/Scrapyard | Entered Materials 307 | -10/Materials | Build established: Mutant 379 | -10/Materials | Discovered new exit (range 12) 494 | -10/Materials | Discovered new exit (range 10) 874 | -10/Materials | Discovered new exit (range 16) 1080 | -10/Materials | Entered Mines 1286 | -10/Mines | Learned location of Storage (-9) 1372 | -10/Mines | Learned Materials garrison access intel 1539 | -10/Mines | Received a Rocket Launcher from a helpful Derelict 1668 | -10/Mines | Deemed a non-threat by the Exiles lab entrance 1668 | -10/Mines | Discovered new exit (range 5) 1676 | -10/Mines | Entered Exiles 1676 | -10/Exiles | Accompanied by 1 ally 1706 | -10/Exiles | Led the pair of lost Derelicts to a safe place 1724 | -10/Exiles | Met 8R-AWN 1752 | -10/Exiles | Met EX-HEX 1828 | -10/Exiles | Met EX-DEC 1862 | -10/Exiles | Visited The Gauntlet 2136 | -10/Exiles | Discovered new exit (range 14) 2157 | -10/Exiles | Entered Mines 2178 | -9/Mines | Met a Derelict bent on vengeance 2193 | -9/Mines | Assembled infested the area 2198 | -9/Mines | Assisted by a Guerilla fighting off Assembled 2239 | -9/Mines | Core integrity fell below 50% 2254 | -9/Mines | Core integrity fell below 20% 2281 | -9/Mines | Lost 5 parts (1p1n1u2w) 2345 | -9/Mines | Destroyed by as-72660 with Assembled Maul Last Messages --------------- 02250_ Destroyed Rocket Launcher. 02250_ Aluminum Leg destroyed. 02250_ Destroyed Aluminum Leg. 02250_ Hvy. Assault Rifle destroyed. 02250_ Destroyed Hvy. Assault Rifle. 02259_ U-05 Engineer lays Concrete. 02260_ Y-45 Defender destroyed. 02260_ U-05 Engineer lays Concrete. 02265_ K-01 Serf collects debris. 02266_ U-05 Engineer lays Concrete. 02269_ The unstable cave ceiling collapses. 02269_ U-05 Engineer destroyed. 02280_ as-01297 destroyed. 02281_ The unstable cave ceiling collapses. 02286_ as-39342 destroyed. 02328_ as-72660 sneak attacks. 02328_ T-07 Excavator system corrupted by crushing effect. 02328_ T-07 Excavator knocked back. 02329_ T-07 Excavator system terminally corrupted. 02340_ Destroyed Asb. Hover Unit. Map ----- +----------------------------------------------------+ | ?????????????????????????????????????????????????? | | ?????????????????????????????????????????????????? | | ?????????????????????????????????????????????????? | | ?????????????????????????????????????????????????? | | ?????????????????????????????????????????????????? | | ?????????????????????????????????????????????????? | | ?????????????????????????????????????????????????? | | ?????????????????????????????????????????????????? | | ???????????????????????????????????####??????????? | | ???????????????????????????????????# ###????????? | | ??????????????????????????????????? #????####? | | ?????????????????????????????????### !!"###### ## | | ?????????????????????????????????# ]/ "## # | | ?????????????????????????????????# # # | | ????????????????????????????????## # # | | ????????????????????????????????# ## # | | ????????????????????????????????## #?# | | ????????????????????????????????# #??# | | ?????????????????????????######## * ##?# | | ?????????????????????????# ## !%= #?# | | ?????????????????????????# ### % #?## # | | ?????????????????????????# ## #?# #??## # | | ?????????????????????????# ## ### ###### # | | ?????????????????????????# ## ## ## # | | ?????????? ##### ## ### ###### | | ??????????# %a@ ## ### #????? | | ???????????# # #????? | | ????????????# #### #????? | | ????????????# % #???## # ##????? | | ??????????? ####?????######## #### #?????? | | ???????????? ?????????????????#%#??# #?????? | | ????????????## ?????????????????? ?? #?????? | | ?????????????## ??????????????????? ####?###?????? | | ??????????????#???????????????????#??????????????? | | ?????????????????????????????????????????????????? | | ?????????????????????????????????????????????????? | | ?????????????????????????????????????????????????? | | ?????????????????????????????????????????????????? | | ?????????????????????????????????????????????????? | | ?????????????????????????????????????????????????? | | ?????????????????????????????????????????????????? | | ?????????????????????????????????????????????????? | | ?????????????????????????????????????????????????? | | ?????????????????????????????????????????????????? | | ?????????????????????????????????????????????????? | | ?????????????????????????????????????????????????? | | ?????????????????????????????????????????????????? | | ?????????????????????????????????????????????????? | | ?????????????????????????????????????????????????? | | ?????????????????????????????????????????????????? | +----------------------------------------------------+ Best States ------------- Heat Dissipation 25 Energy Generation 10 Energy Capacity 125 Matter Stores 300 Matter Capacity 300 Sight Range 16 Robot Scan Range 14 Terrain Scan Density 10 Evasion (%) 55 Item Schematics ----------------- None Robot Schematics ------------------ None Fabricated ------------ Nothing Alien Tech Used ----------------- None Achievements -------------- None Challenges ------------ None Game ------ Seed CarbideBiomechanicalDrive Manual? 0 Play Time 00:15:25 Cumulative 14.9 hours Start 2025.01.11 @ 10:46:48 End 2025.01.11 @ 13:26:05 Sessions 1 Manual Loads 0 Difficulty Rogue Special Mode None Game No. 71 Rogue 71 Adventurer 0 Explorer 0 Win Type - Total 0 Types 0/0/0/0/0/0/0/0/0 Lore% 16 Gallery% 17 Achievement% 21 Wizard Run 0 Options --------- Layout 0 ASCII 0 Keyboard 0 Movement Mouse Keybinds 0 Fullscreen 1 Font 18/SmallcapsGlow Map View 38x25 Zoom Use 93% Tactical HUD 1 Map Filters NONE Filters NONE Steam 1 RUN: b70bea15-e5c1-4e2e-9516-db4ed20e2804